bitfinex/quotes_SOLUSD_20251031
["timestamp","ask_amount","ask_price","bid_price","bid_amount"]
[1761898228945,23.7293697,185.54,185.49,0.2]
[1761898228946,24.3893697,185.54,185.49,0.2]
[1761898229134,3.1373697,185.5,185.49,0.2]
[1761898229930,5.29865566,185.5,185.49,0.2]
[1761898230131,5.95865566,185.5,185.49,0.2]
[1761898230752,2.16128596,185.5,185.49,10.64882769]
[1761898230923,3.1373697,185.53,185.49,16.03995389]
[1761898231127,2.16081895,185.52,185.51,9.78882769]
[1761898231330,0.66,185.59,185.51,13.58619739]
[1761898231636,13.46917061,185.56,185.53,12.92619739]
[1761898231948,13.46917061,185.56,185.51,3.1373697]
[1761898232149,14.12917061,185.56,185.51,3.1373697]
[1761898232347,14.12917061,185.56,185.52,5.39025442]
[1761898232542,14.12917061,185.56,185.52,6.05025442]
[1761898232735,13.46917061,185.56,185.52,6.05025442]
[1761898233554,3.7973697,185.62,185.55,12.92619739]
[1761898233765,9.78882769,185.59,185.56,3.1373697]
[1761898234057,3.7973697,185.62,185.56,3.1373697]
[1761898234356,9.78882769,185.61,185.56,5.38909247]
[1761898234739,3.1373697,185.58,185.52,9.78882769]
[1761898234943,3.1373697,185.58,185.52,10.44882769]
[1761898235142,0.66,185.59,185.52,10.44882769]
[1761898235343,9.78882769,185.57,185.53,0.66]
[1761898235842,9.78882769,185.57,185.53,6.04973395]
[1761898236644,9.78882769,185.57,185.53,5.38973395]
[1761898236850,9.78882769,185.57,185.53,6.04973395]
[1761898237759,9.78882769,185.57,185.53,5.38973395]
[1761898237946,9.78882769,185.57,185.53,6.04973395]
[1761898238259,9.78882769,185.57,185.53,5.38973395]
[1761898238457,9.78882769,185.57,185.54,0.66]
[1761898239044,9.78882769,185.57,185.52,12.92619739]
[1761898239247,10.44882769,185.57,185.53,0.66]
[1761898239646,3.7973697,185.56,185.51,5.39051125]
[1761898239850,3.7973697,185.56,185.51,15.17933894]
[1761898240047,16.86439139,185.56,185.51,15.83933894]
[1761898240339,0.66,185.55,185.51,15.83933894]
[1761898240961,16.20439139,185.54,185.51,15.83933894]
[1761898241158,16.20439139,185.54,185.51,15.17933894]
[1761898241365,16.20439139,185.54,185.51,15.83933894]
[1761898247258,3.7973697,185.53,185.49,0.2]
[1761898247447,16.20439139,185.54,185.49,0.2]
[1761898247448,18.21699064,185.54,185.49,5.59102857]
[1761898247647,16.20439139,185.54,185.5,0.66]
[1761898247858,16.86439139,185.54,185.5,0.66]
[1761898248445,16.86439139,185.54,185.5,6.05073162]
[1761898249052,16.20439139,185.54,185.51,10.44882769]
[1761898249246,16.20439139,185.54,185.52,2.67259925]
[1761898249453,16.20439139,185.54,185.53,2.01259925]
[1761898249674,16.20439139,185.54,185.53,0.66]
[1761898249857,16.20439139,185.54,185.53,2.67259925]
[1761898250468,16.20439139,185.54,185.53,8.06256313]
[1761898250880,16.20439139,185.54,185.53,6.04996388]
[1761898252859,16.20439139,185.54,185.53,8.06256313]
[1761898253285,16.20439139,185.54,185.53,0.66]
[1761898253460,16.20439139,185.54,185.53,2.67259925]
[1761898253797,16.20439139,185.54,185.53,17.85139082]
[1761898253966,0.66,185.62,185.54,9.78882769]
[1761898254169,9.78882769,185.59,185.57,2.01259925]
[1761898254566,9.78882769,185.59,185.58,0.66]
[1761898255663,9.78882769,185.59,185.57,7.40133002]
[1761898255864,9.78882769,185.59,185.57,8.06133002]
[1761898257880,6.04741049,185.62,185.56,9.78882769]
[1761898258071,6.04741049,185.62,185.56,11.80142694]
[1761898258393,0.66,185.61,185.56,12.46142694]
[1761898258581,2.01259925,185.59,185.53,15.17879157]
[1761898258789,2.01259925,185.57,185.53,15.17879157]
[1761898259090,2.01259925,185.58,185.53,15.17879157]
[1761898259486,2.67259925,185.57,185.53,15.17879157]
[1761898259785,2.67259925,185.57,185.52,0.68]
[1761898259972,0.66,185.56,185.52,8.08276941]
[1761898260163,3.99222994,185.57,185.52,8.08276941]
[1761898260365,2.01259925,185.58,185.53,9.78882769]
[1761898260565,2.67259925,185.59,185.54,5.38967338]
[1761898260766,2.01259925,185.57,185.53,9.78882769]
[1761898260988,4.65281945,185.58,185.54,9.78882769]
[1761898260989,3.99220345,185.56,185.54,9.78882769]
[1761898261199,6.0048027,185.55,185.49,0.2]
[1761898261488,24.58420345,185.54,185.49,0.2]
[1761898261679,2.01259925,185.5,185.49,0.2]
[1761898261887,6.0048027,185.5,185.49,0.2]
[1761898262188,0.16031691,185.53,185.49,0.2]
[1761898262378,20.592,185.55,185.49,0.2]
[1761898262379,2.01259925,185.5,185.49,0.2]
[1761898262693,15.45383182,185.5,185.49,0.2]
[1761898263675,7.40343482,185.5,185.49,0.2]
[1761898264274,20.592,185.47,185.46,0.2]
[1761898264473,22.60459925,185.47,185.46,0.2]
[1761898264797,27.9963068,185.47,185.46,0.2]
[1761898266392,25.98370755,185.47,185.46,0.2]
[1761898269003,16.47121002,185.52,185.46,0.2]
[1761898269004,13.47534174,185.53,185.46,2.21259925]
[1761898269295,21.02449335,185.55,185.48,2.01259925]
[1761898269602,18.8630906,185.55,185.48,2.01259925]
[1761898269892,20.592,185.52,185.48,2.01259925]
[1761898270104,20.592,185.52,185.46,2.21259925]
[1761898270774,2.01259925,185.48,185.46,0.2]
[1761898270997,2.01259925,185.47,185.46,0.2]
[1761898271497,22.60459925,185.47,185.46,0.2]
[1761898272973,27.9963068,185.47,185.46,0.2]
[1761898274178,31.9781728,185.47,185.46,0.2]
[1761898275488,35.55890798,185.47,185.46,0.2]
[1761898276301,31.9781728,185.47,185.46,0.2]
[1761898277804,58.82761683,185.47,185.44,0.2]
[1761898277976,27.99746987,185.43,185.42,0.1]
[1761898278176,45.34951102,185.43,185.41,1e-08]
[1761898278480,21.37373184,185.42,185.41,1e-08]
[1761898279305,26.76689331,185.42,185.41,1e-08]
[1761898279611,26.76689331,185.42,185.37,0.1]
[1761898279612,20.592,185.39,185.37,0.1]
[1761898279788,26.58646525,185.39,185.37,0.1]
[1761898280099,36.37529294,185.39,185.38,1e-08]
[1761898280305,38.53891701,185.39,185.38,1e-08]
[1761898280679,28.75008932,185.39,185.38,1e-08]
[1761898281116,9.78882769,185.38,185.37,1e-08]
[1761898281280,18.89375042,185.38,185.37,1e-08]
[1761898283005,20.592,185.35,185.34,1e-08]
[1761898283212,31.1240347,185.35,185.34,1e-08]
[1761898284407,9.78882769,185.34,185.32,1e-08]
[1761898284612,5.13683643,185.33,185.32,1e-08]
[1761898285082,10.53261692,185.33,185.32,1e-08]
[1761898285988,10.53261692,185.33,185.3,0.1]
[1761898286198,25.72883643,185.32,185.3,0.1]
[1761898286914,31.12490808,185.32,185.3,0.1]
[1761898287890,31.12490808,185.32,185.31,0.77]
[1761898289096,31.12490808,185.32,185.31,0.1]
[1761898290198,31.12490808,185.32,185.31,0.76]
[1761898290412,17.712,185.32,185.31,0.76]
[1761898290616,5.13683643,185.38,185.31,5.89683643]
[1761898290800,5.13683643,185.36,185.31,0.1]
[1761898290990,5.13683643,185.34,185.31,0.1]
[1761898291799,5.13683643,185.33,185.31,0.1]
[1761898292010,5.13683643,185.32,185.31,0.1]
[1761898292913,10.53290808,185.32,185.31,0.1]
[1761898293900,11.23290808,185.32,185.31,0.1]
[1761898295206,5.39607165,185.32,185.31,0.1]
[1761898295402,10.53290808,185.32,185.31,0.1]
[1761898296317,5.13683643,185.32,185.31,0.1]
[1761898298019,0.7,185.36,185.31,0.1]
[1761898298415,5.13683643,185.33,185.31,0.1]
[1761898299218,5.13683643,185.35,185.31,0.1]
[1761898299402,20.592,185.37,185.31,0.1]
[1761898299403,5.13683643,185.36,185.31,5.49635648]
[1761898299720,20.592,185.36,185.31,5.49635648]
[1761898300117,25.72883643,185.36,185.31,5.49635648]
[1761898300411,25.72883643,185.36,185.31,0.1]
[1761898301002,5.13683643,185.34,185.31,0.1]
[1761898301197,5.13683643,185.33,185.31,0.1]
[1761898301620,5.13683643,185.32,185.31,0.1]
[1761898301802,5.13683643,185.33,185.31,0.1]
[1761898302198,5.13683643,185.35,185.31,0.1]
[1761898302807,25.98691645,185.36,185.31,5.49630271]
[1761898303005,5.13683643,185.35,185.31,5.49630271]
[1761898303409,10.53212296,185.35,185.31,0.1]
[1761898304024,5.39528653,185.35,185.31,0.1]
[1761898304223,5.13683643,185.34,185.31,0.1]
[1761898305015,5.13683643,185.32,185.31,0.1]
[1761898306013,10.53290808,185.32,185.31,0.1]
[1761898307323,17.82420453,185.32,185.31,0.1]
[1761898307526,10.07270353,185.32,185.31,0.1]
[1761898307931,9.37270353,185.32,185.31,0.1]
[1761898311924,3.97663188,185.32,185.31,0.1]
[1761898312320,3.98314448,185.32,185.31,0.1]
[1761898312819,7.751501,185.33,185.31,0.1]
[1761898313233,7.751501,185.32,185.31,0.1]
[1761898313938,17.13220202,185.32,185.31,0.1]
[1761898314143,17.83220202,185.32,185.31,0.1]
[1761898314838,26.6869649,185.36,185.31,0.1]
[1761898315046,7.751501,185.34,185.31,0.1]
[1761898315236,7.751501,185.32,185.31,0.1]
[1761898315419,11.74299941,185.32,185.31,0.1]
[1761898316347,17.83907106,185.32,185.31,0.1]
[1761898317422,17.13907106,185.32,185.31,0.1]
[1761898318335,11.74299941,185.32,185.31,0.1]
[1761898319013,3.99149841,185.32,185.31,0.1]
[1761898319217,5.39527958,185.35,185.31,0.1]
[1761898319418,7.751501,185.32,185.31,0.1]
[1761898319625,11.74886218,185.32,185.31,0.1]
[1761898320040,3.99736118,185.32,185.31,0.1]
[1761898320239,17.14493383,185.32,185.31,0.1]
[1761898320421,17.85493383,185.32,185.31,0.1]
[1761898320622,17.14493383,185.32,185.31,0.1]
[1761898324347,17.14493383,185.32,185.3,0.1]
[1761898324348,21.45301126,185.32,185.3,0.1]
[1761898324648,16.05693961,185.31,185.3,0.1]
[1761898325422,21.45330246,185.31,185.3,0.1]
[1761898327432,21.45330246,185.31,185.3,1e-08]
[1761898329951,17.85522503,185.31,185.3,1e-08]
[1761898330155,38.44722503,185.31,185.3,1e-08]
[1761898330362,42.04530246,185.31,185.3,1e-08]
[1761898330535,42.05140727,185.31,185.3,1e-08]
[1761898331348,37.45281632,185.31,185.3,1e-08]
[1761898332059,40.60572637,185.31,185.3,1e-08]
[1761898338063,37.45281632,185.31,185.3,1e-08]
[1761898340359,36.74281632,185.31,185.3,1e-08]
[1761898343158,37.46281632,185.31,185.3,1e-08]
[1761898344350,37.46380551,185.31,185.3,1e-08]
[1761898344978,33.59089546,185.31,185.3,1e-08]
[1761898345180,36.74380551,185.31,185.3,1e-08]
[1761898345465,36.74380551,185.31,185.3,0.12000001]
[1761898345466,4.00445518,185.31,185.3,0.12000001]
[1761898345670,4.00445518,185.34,185.3,0.12000001]
[1761898345859,4.00445518,185.33,185.3,0.12000001]
[1761898346061,9.00067796,185.34,185.3,0.12000001]
[1761898346260,4.0050367,185.33,185.3,0.12000001]
[1761898347059,4.0050367,185.33,185.3,5.51639623]
[1761898347265,4.50482063,185.41,185.32,3.15291005]
[1761898347569,4.00597714,185.39,185.34,3.15291005]
[1761898347881,4.00597714,185.38,185.35,0.12]
[1761898348070,5.39401642,185.4,185.35,0.12]
[1761898348385,4.00501071,185.39,185.35,0.12]
[1761898349465,9.39912449,185.39,185.35,0.12]
[1761898349665,4.00501071,185.38,185.35,0.12]
[1761898350174,3.15291005,185.36,185.35,0.12]
[1761898350578,24.45491005,185.36,185.3,1e-08]
[1761898350753,3.15291005,185.33,185.31,0.12]
[1761898351376,3.15291005,185.35,185.31,0.12]
[1761898351554,3.15291005,185.35,185.32,5.39607165]
[1761898351969,3.15291005,185.35,185.33,0.12]
[1761898352174,5.39460874,185.38,185.33,0.12]
[1761898352373,3.15291005,185.35,185.33,0.12]
[1761898353279,3.15291005,185.34,185.33,0.12]
[1761898355092,3.15291005,185.37,185.33,5.51578049]
[1761898355460,3.15291005,185.38,185.34,0.12]
[1761898355662,3.15291005,185.37,185.34,0.12]
[1761898355862,3.15291005,185.38,185.34,9.90882769]
[1761898356274,3.15291005,185.39,185.35,5.51491484]
[1761898356679,3.15291005,185.39,185.36,0.12]
[1761898358487,3.15291005,185.39,185.36,5.51488117]
[1761898358874,3.15291005,185.39,185.37,0.12]
[1761898359269,3.15291005,185.4,185.37,0.12]
[1761898359476,3.15291005,185.4,185.37,5.51458377]
[1761898359787,14.19055868,185.46,185.37,5.51458377]
[1761898359788,25.98428902,185.45,185.37,5.51458377]
[1761898359979,3.15291005,185.41,185.38,0.12]
[1761898360377,3.15291005,185.4,185.38,0.12]
[1761898360580,3.15291005,185.4,185.36,5.51488255]
[1761898360775,3.15291005,185.4,185.37,0.12]
[1761898361282,3.15291005,185.38,185.34,0.12]
[1761898361674,3.15291005,185.38,185.34,5.51534351]
[1761898361875,3.15291005,185.37,185.34,5.51534351]
[1761898362077,3.15291005,185.38,185.35,0.12]
[1761898362477,3.15291005,185.39,185.35,0.12]
[1761898363177,3.15291005,185.36,185.3,5.39641881]
[1761898363487,3.15291005,185.35,185.3,5.51641881]
[1761898363687,3.15291005,185.35,185.3,5.39641881]
[1761898363885,3.15291005,185.35,185.31,0.12]
[1761898364087,3.15291005,185.36,185.31,0.12]
[1761898364279,3.15291005,185.35,185.31,0.12]
[1761898365390,3.15291005,185.35,185.31,5.51632001]
[1761898366290,8.54812458,185.35,185.3,15.30546514]
[1761898367198,8.54812458,185.35,185.31,0.12]
[1761898367903,5.39521453,185.35,185.31,0.12]
[1761898368682,3.86291005,185.34,185.3,1e-08]
[1761898368880,0.71,185.33,185.3,1e-08]
[1761898369197,8.54785957,185.36,185.3,5.51660101]
[1761898369394,7.41136206,185.36,185.3,5.51660101]
[1761898369592,0.71,185.38,185.33,2.01641254]
[1761898369900,0.71,185.38,185.33,7.53217552]
[1761898370203,8.12090113,185.38,185.32,7.4124202]
[1761898370401,8.12090113,185.38,185.33,0.12]
[1761898371090,0.71,185.37,185.32,2.01641254]
[1761898371491,2.72641254,185.37,185.31,0.12]
[1761898371798,2.72641254,185.37,185.31,2.13641254]
[1761898372404,2.72641254,185.37,185.31,7.53250395]
[1761898372609,8.12109074,185.37,185.31,7.53250395]
[1761898373100,2.01641254,185.35,185.3,1e-08]
[1761898373297,2.01641254,185.34,185.3,1e-08]
[1761898373686,2.72641254,185.34,185.3,1e-08]
[1761898374600,8.12109074,185.37,185.31,2.01641254]
[1761898375001,2.01641254,185.36,185.3,2.13641255]
[1761898375198,2.01641254,185.35,185.3,0.12000001]
[1761898375518,2.01641254,185.31,185.3,1e-08]
[1761898375816,2.72641254,185.31,185.3,1e-08]
[1761898376388,8.12277539,185.31,185.3,1e-08]
[1761898379287,16.18842555,185.31,185.3,1e-08]
[1761898379487,28.71477539,185.31,185.3,1e-08]
[1761898379695,8.12277539,185.31,185.3,1e-08]
[1761898380501,28.71477539,185.31,185.3,1e-08]
[1761898381585,36.78042555,185.31,185.3,1e-08]
[1761898382408,16.18842555,185.31,185.3,1e-08]
[1761898383090,36.78042555,185.31,185.3,1e-08]
[1761898383388,16.18842555,185.31,185.3,1e-08]
[1761898384282,36.78042555,185.31,185.3,1e-08]
[1761898384483,16.18842555,185.31,185.3,1e-08]
[1761898389401,36.78042555,185.31,185.3,1e-08]
[1761898389708,20.592,185.28,185.27,0.2]
[1761898389900,22.60841254,185.28,185.27,0.2]
[1761898390095,23.32841254,185.28,185.27,0.2]
[1761898390295,23.32841254,185.28,185.18,9.90882769]
[1761898390495,2.01641254,185.21,185.18,0.12]
[1761898391197,5.39956803,185.2,185.15,5.40089613]
[1761898391398,5.39956803,185.2,185.18,0.12]
[1761898391993,7.41574442,185.21,185.18,0.12]
[1761898393319,7.41605001,185.2,185.16,9.90882769]
[1761898393515,7.41605001,185.2,185.17,0.12]
[1761898393895,2.01641254,185.19,185.14,9.78882769]
[1761898394110,7.41605001,185.2,185.16,0.12]
[1761898394314,2.01641254,185.21,185.16,2.13641254]
[1761898396118,2.01641254,185.24,185.19,0.12]
[1761898396495,2.01641254,185.24,185.19,9.90882769]
[1761898396496,2.01641254,185.23,185.19,9.90882769]
[1761898396714,2.01641254,185.22,185.16,5.40073238]
[1761898396913,2.01641254,185.22,185.17,0.12]
[1761898397295,7.4162355,185.2,185.15,0.12]
[1761898397502,2.01641254,185.19,185.15,9.90882769]
[1761898397896,7.4162355,185.2,185.16,0.12]
[1761898398214,21.252,185.23,185.16,0.12]
[1761898398409,2.01641254,185.21,185.16,0.12]
[1761898399626,7.41598057,185.2,185.16,0.12]
[1761898400228,8.07598057,185.2,185.15,9.78882769]
[1761898400520,7.41598057,185.2,185.16,0.12]
[1761898401101,5.39956803,185.2,185.16,0.12]
[1761898401301,7.41572282,185.21,185.16,0.12]
[1761898401505,8.07540489,185.22,185.16,7.53711533]
[1761898401719,5.39899235,185.22,185.17,0.12]
[1761898402111,5.39899235,185.22,185.17,2.13641254]
[1761898402422,8.07540489,185.22,185.17,0.12]
[1761898404426,2.01641254,185.21,185.17,0.12]
[1761898405129,2.67641254,185.2,185.15,15.18980084]
[1761898405526,2.01641254,185.18,185.13,9.78882769]
[1761898405727,2.01641254,185.16,185.12,0.1]
[1761898406323,2.01641254,185.17,185.12,0.22]
[1761898406525,2.67641254,185.17,185.12,5.62181264]
[1761898406717,2.01641254,185.16,185.12,5.62181264]
[1761898407730,2.67641254,185.17,185.12,5.62181264]
[1761898409124,2.01641254,185.2,185.15,2.01641254]
[1761898409329,0.7,185.22,185.15,2.01641254]
[1761898409509,2.01641254,185.21,185.16,0.12]
[1761898409705,0.7,185.22,185.16,0.12]
[1761898409931,2.01641254,185.21,185.16,0.12]
[1761898410330,2.71641254,185.21,185.16,5.5205435]
[1761898410517,2.71641254,185.21,185.16,7.53695604]
[1761898411033,2.01641254,185.22,185.16,7.53695604]
[1761898411208,2.71641254,185.21,185.16,5.4005435]
[1761898411413,2.01641254,185.2,185.16,5.4005435]
[1761898411634,0.7,185.19,185.16,5.4005435]
[1761898411834,2.71641254,185.2,185.16,5.4005435]
[1761898412215,2.71641254,185.2,185.14,25.42851686]
[1761898412216,2.01641254,185.21,185.15,7.41743873]
[1761898412420,2.71641254,185.22,185.16,2.01641254]
[1761898412617,8.11546668,185.22,185.16,2.01641254]
[1761898412919,7.41546668,185.22,185.16,2.01641254]
[1761898413118,2.71641254,185.21,185.15,7.53743873]
[1761898414026,0.7,185.26,185.21,9.78882769]
[1761898414230,0.7,185.26,185.22,2.01641254]
[1761898414433,2.01641254,185.23,185.12,0.22]
[1761898414611,0.7,185.26,185.12,0.22]
[1761898414612,2.01641254,185.2,185.14,9.78882769]
[1761898415018,2.01641254,185.2,185.14,9.90882769]
[1761898415534,0.7,185.2,185.14,9.90882769]
[1761898416040,2.01641254,185.19,185.14,9.90882769]
[1761898416222,2.01641254,185.19,185.14,0.12]
[1761898416425,2.01641254,185.19,185.14,5.52112844]
[1761898416724,2.01641254,185.18,185.14,5.52112844]
[1761898419338,2.01641254,185.18,185.13,9.78882769]
[1761898419339,2.71641254,185.17,185.13,9.78882769]
[1761898419536,2.01641254,185.16,185.13,9.78882769]
[1761898419838,2.01641254,185.16,185.12,0.1]
[1761898419839,2.01641254,185.15,185.12,0.1]
[1761898421827,2.01641254,185.14,185.12,0.1]
[1761898422744,2.71641254,185.15,185.12,0.1]
[1761898423519,2.01641254,185.15,185.12,0.1]
[1761898424244,2.01641254,185.14,185.12,0.1]
[1761898424547,2.01641254,185.13,185.12,0.1]
[1761898424726,2.71641254,185.13,185.12,0.1]
[1761898425350,8.11802221,185.13,185.12,0.1]
[1761898425520,2.71641254,185.13,185.12,0.1]
[1761898425916,2.01641254,185.13,185.12,0.1]
[1761898426221,6.10103833,185.15,185.12,0.1]
[1761898426222,2.01641254,185.15,185.12,0.1]
[1761898426532,2.71641254,185.15,185.12,0.1]
[1761898426732,0.7,185.14,185.12,0.1]
[1761898427839,6.10142133,185.14,185.12,0.1]
[1761898428144,2.71641254,185.14,185.12,0.1]
[1761898428345,0.7,185.14,185.12,0.1]
[1761898429048,2.71641254,185.14,185.12,0.1]
[1761898429540,3.15771767,185.15,185.12,0.1]
[1761898429739,3.85771767,185.15,185.12,0.1]
[1761898429929,9.25850337,185.16,185.12,0.1]
[1761898430129,0.7,185.15,185.12,0.1]
[1761898430534,3.15771767,185.14,185.12,0.1]
[1761898430933,3.85771767,185.14,185.12,0.1]
[1761898431139,3.15771767,185.13,185.12,0.1]
[1761898431932,9.25904237,185.14,185.12,0.1]
[1761898432244,3.85771767,185.13,185.12,0.1]
[1761898433355,4.47594388,185.27,185.12,5.62190146]
[1761898433543,3.15771767,185.17,185.12,8.77961913]
[1761898433853,3.15771767,185.17,185.12,5.62190146]
[1761898434055,3.15771767,185.17,185.12,8.77961913]
[1761898434056,3.85771767,185.17,185.12,8.77961913]
[1761898434455,3.15771767,185.18,185.13,12.94654536]
[1761898434651,0.7,185.19,185.14,3.15771767]
[1761898435049,3.85771767,185.19,185.13,13.06654536]
[1761898435439,0.7,185.19,185.13,12.94654536]
[1761898435655,0.7,185.18,185.14,5.40131792]
[1761898435841,3.85771767,185.18,185.13,9.78882769]
[1761898436035,3.85771767,185.18,185.13,8.55923]
[1761898436341,0.7,185.18,185.13,8.67923]
[1761898436541,0.7,185.18,185.14,12.94654536]
[1761898436846,0.7,185.18,185.14,9.78882769]
[1761898437855,0.7,185.18,185.15,5.40102619]
[1761898438742,0.7,185.18,185.12,9.88882769]
[1761898438743,3.85771767,185.18,185.12,9.88882769]
[1761898438953,3.85771767,185.18,185.12,13.04654536]
[1761898440359,0.7,185.18,185.14,9.78882769]
[1761898440959,0.72,185.2,185.15,3.27771767]
[1761898441154,0.72,185.2,185.16,3.15771767]
[1761898441360,0.72,185.2,185.15,3.15771767]
[1761898442048,3.15771767,185.19,185.14,9.78882769]
[1761898442367,3.15771767,185.19,185.15,5.40102619]
[1761898442659,0.72,185.18,185.15,5.40102619]
[1761898443759,3.15771767,185.19,185.15,5.40102619]
[1761898443964,3.15771767,185.2,185.15,5.40102619]
[1761898444146,3.87771767,185.2,185.15,5.40102619]
[1761898444344,0.72,185.19,185.15,5.40102619]
[1761898444947,3.15771767,185.21,185.16,9.90882769]
[1761898445149,3.87771767,185.21,185.16,9.78882769]
[1761898445356,3.87771767,185.2,185.16,9.78882769]
[1761898445756,0.72,185.19,185.16,9.78882769]
[1761898446145,0.72,185.19,185.16,15.18935264]
[1761898446572,3.15771767,185.2,185.16,15.18935264]
[1761898446782,3.87771767,185.2,185.16,15.18935264]
[1761898447077,0.72,185.19,185.16,15.18935264]
[1761898447370,3.15771767,185.2,185.16,15.18935264]
[1761898447566,3.87771767,185.2,185.16,15.18935264]
[1761898448075,3.15771767,185.2,185.16,15.18935264]
[1761898448373,0.72,185.19,185.16,15.18935264]
[1761898449569,3.15771767,185.18,185.15,9.78882769]
[1761898450067,3.87771767,185.18,185.15,9.78882769]
[1761898450371,0.72,185.18,185.15,9.78882769]
[1761898450570,3.15771767,185.19,185.15,9.78882769]
[1761898450761,3.15771767,185.18,185.14,5.40116948]
[1761898451374,3.87771767,185.18,185.14,5.40116948]
[1761898451579,3.87771767,185.18,185.13,15.19043736]
[1761898451962,3.15771767,185.18,185.13,15.19043736]
[1761898452159,0.72,185.17,185.13,15.19043736]
[1761898452360,3.87771767,185.17,185.12,67.20187556]
[1761898452557,3.15771767,185.16,185.12,5.50187556]
[1761898452873,0.72,185.15,185.12,5.50187556]
[1761898453077,3.15771767,185.16,185.12,5.50187556]
[1761898453262,3.87771767,185.16,185.12,5.50187556]
[1761898454377,16.95684139,185.18,185.12,19.12662923]
[1761898454583,19.39455906,185.18,185.13,0.12]
[1761898455076,3.87771767,185.18,185.13,0.12]
[1761898455576,3.87771767,185.17,185.12,19.00662923]
[1761898456082,0.72,185.16,185.12,19.00662923]
[1761898456580,3.87771767,185.16,185.12,5.50187556]
[1761898456876,3.15771767,185.15,185.12,5.50187556]
[1761898457075,3.15771767,185.13,185.12,0.1]
[1761898457579,3.86771767,185.13,185.12,0.1]
[1761898458065,9.26932734,185.13,185.12,0.1]
[1761898458264,3.86771767,185.13,185.12,0.1]
[1761898459273,9.26932734,185.13,185.12,0.1]
[1761898461182,3.86771767,185.13,185.12,0.1]
[1761898461375,9.26932734,185.13,185.12,0.1]
[1761898462056,12.42704501,185.13,185.12,0.1]
[1761898462255,20.592,185.12,185.11,0.1]
[1761898462472,24.45971767,185.12,185.11,0.1]
[1761898462676,24.45971767,185.12,185.02,15.19345078]
[1761898462960,22.06335153,185.13,185.02,15.19345078]
[1761898462961,3.15771767,185.05,185.02,15.19345078]
[1761898463185,3.15771767,185.05,185.0,10.20882769]
[1761898463393,3.15771767,185.02,185.0,5.50535821]
[1761898463558,3.15771767,185.03,185.0,5.50535821]
[1761898463761,3.15771767,185.03,185.0,0.1]
[1761898463982,3.86771767,185.03,185.0,0.1]
[1761898464179,3.15771767,185.02,185.0,0.1]
[1761898464477,3.15771767,185.01,185.0,0.1]
[1761898464659,3.86771767,185.02,185.0,0.1]
[1761898465279,0.71,185.02,185.0,0.1]
[1761898465582,3.86771767,185.01,185.0,0.1]
[1761898466104,3.15771767,185.02,185.0,0.1]
[1761898466284,3.15771767,185.01,185.0,0.1]
[1761898466473,3.86771767,185.02,185.0,0.1]
[1761898466672,3.15771767,185.03,185.0,0.1]
[1761898467063,3.15771767,185.04,185.0,5.50538344]
[1761898467588,3.86771767,185.04,185.0,5.50538344]
[1761898467973,0.71,185.03,185.0,5.50538344]
[1761898468170,0.71,185.03,185.0,0.1]
[1761898468487,3.86771767,185.03,185.0,5.50540177]
[1761898468985,0.66,185.05,185.0,5.82540177]
[1761898469184,3.81771767,185.05,185.0,5.50540177]
[1761898469487,0.66,185.05,185.0,5.50540177]
[1761898469790,3.15771767,185.03,185.0,0.1]
[1761898470084,3.15771767,185.03,185.0,5.50538736]
[1761898470284,3.81771767,185.03,185.0,5.50538736]
[1761898470485,3.81771767,185.02,185.0,0.1]
[1761898471776,0.66,185.01,185.0,0.1]
[1761898471975,3.15771767,185.02,185.0,0.1]
[1761898472172,3.15771767,185.01,185.0,0.1]
[1761898472369,3.81771767,185.01,185.0,0.1]
[1761898473606,3.15771767,185.01,185.0,0.1]
[1761898474202,3.15771767,185.02,185.0,0.1]
[1761898474696,3.81771767,185.02,185.0,0.1]
[1761898475197,3.81771767,185.01,185.0,0.1]
[1761898475401,3.15771767,185.01,185.0,0.1]
[1761898477191,3.81771767,185.02,185.0,0.1]
[1761898477602,3.15771767,185.02,185.0,0.1]
[1761898477785,3.81771767,185.02,185.0,0.1]
[1761898477988,3.81771767,185.01,185.0,0.1]